bitfinex/quotes_SOLUSD_20220129
["timestamp","ask_amount","ask_price","bid_price","bid_amount"]
[1643447050077,15.3931,95.644,95.391,62.07]
[1643447050271,3.0,95.683,95.44,157.36]
[1643447050478,12.59,95.65,95.45,12.59]
[1643447050671,12.59,95.65,95.461,40.84882754]
[1643447050870,15.9757,95.659,95.462,103.65]
[1643447050871,12.59,95.64,95.462,103.65]
[1643447051075,12.59,95.64,95.473,62.07]
[1643447051272,12.59,95.64,95.481,38.86690371]
[1643447051483,12.59,95.64,95.482,103.4]
[1643447051679,12.59,95.63,95.482,2.44807928]
[1643447051882,12.59,95.63,95.481,38.86690371]
[1643447052179,103.4,95.629,95.481,41.31498299]
[1643447052380,34.19178219,95.628,95.481,41.31498299]
[1643447052580,6.0,95.618,95.481,41.31498299]
[1643447052780,40.19178219,95.618,95.481,41.31498299]
[1643447052983,6.0,95.61,95.481,41.31498299]
[1643447053181,34.19178219,95.616,95.481,41.31498299]
[1643447053381,34.19178219,95.619,95.481,41.31498299]
[1643447053783,0.25,95.618,95.481,41.31498299]
[1643447053985,34.44178219,95.618,95.481,41.31498299]
[1643447054184,34.19178219,95.618,95.481,41.31498299]
[1643447054684,35.09434403,95.619,95.481,41.31498299]
[1643447054983,35.09434403,95.619,95.482,2.44807928]
[1643447055386,35.09434403,95.619,95.481,38.86690371]
[1643447055585,6.0,95.609,95.482,2.44807928]
[1643447055984,6.0,95.608,95.482,103.4]
[1643447056187,6.0,95.608,95.481,38.86690371]
[1643447056188,41.09434403,95.608,95.481,38.86690371]
[1643447056386,41.09434403,95.607,95.481,38.86690371]
[1643447056586,6.0,95.597,95.481,38.86690371]
[1643447056786,33.50825119,95.596,95.482,2.44807928]
[1643447056986,33.50825119,95.595,95.492,109.4]
[1643447057187,33.50825119,95.594,95.492,109.4]
[1643447057387,0.25,95.594,95.493,2.44031721]
[1643447057586,0.25,95.594,95.503,6.0]
[1643447057787,0.25,95.619,95.504,103.4]
[1643447057987,0.25,95.619,95.503,6.0]
[1643447058190,0.25,95.619,95.505,2.44031721]
[1643447058389,21.77631736,95.618,95.505,2.44031721]
[1643447058591,6.0,95.608,95.505,2.44031721]
[1643447058791,21.77631736,95.618,95.505,2.44031721]
[1643447058792,0.25,95.607,95.517,35.04543509]
[1643447059192,0.25,95.607,95.517,37.4857523]
[1643447059392,28.295,95.66,95.527,6.0]
[1643447059590,28.295,95.66,95.52,12.59]
[1643447059591,21.77369376,95.649,95.528,103.4]
[1643447059891,112.8,95.644,95.517,35.04543509]
[1643447060191,35.25540333,95.643,95.517,35.04543509]
[1643447060792,112.8,95.635,95.518,2.43336928]
[1643447060992,112.8,95.635,95.518,105.83336928]
[1643447061191,112.8,95.635,95.53,12.59]
[1643447061394,112.8,95.635,95.531,0.25]
[1643447061592,112.8,95.635,95.531,106.08336928]
[1643447061794,112.8,95.635,95.532,45.2329923]
[1643447062395,0.25,95.634,95.532,45.2329923]
[1643447063414,112.8,95.635,95.532,45.2329923]
[1643447063616,28.291,95.67,95.533,2.43336928]
[1643447063812,34.31164291,95.669,95.533,2.43336928]
[1643447064013,34.31164291,95.669,95.532,45.2329923]
[1643447064216,43.52164291,95.669,95.532,45.2329923]
[1643447064412,6.0,95.659,95.532,45.2329923]
[1643447064614,6.0,95.658,95.533,105.83336928]
[1643447064814,41.81358941,95.658,95.542,6.0]
[1643447065014,112.8,95.676,95.55,12.59]
[1643447065214,35.56358941,95.675,95.56,12.59]
[1643447065713,35.56358941,95.675,95.561,37.75625379]
[1643447065917,35.56358941,95.675,95.57,6.0]
[1643447066115,35.56358941,95.675,95.561,40.18962307]
[1643447066116,35.56358941,95.675,95.562,2.43336928]
[1643447066315,6.0,95.665,95.55,12.59]
[1643447066522,6.0,95.665,95.54,12.59]
[1643447066715,112.8,95.64,95.54,12.59]
[1643447066916,35.0619074,95.639,95.54,12.59]
[1643447067214,6.0,95.629,95.541,43.32348737]
[1643447067615,0.25,95.628,95.541,43.32348737]
[1643447068015,0.25,95.628,95.542,2.43336928]
[1643447068216,12.59,95.68,95.542,2.43336928]
[1643447068420,0.25,95.659,95.542,2.43336928]
[1643447068616,0.25,95.659,95.543,0.25]
[1643447068819,0.25,95.659,95.542,105.83336928]
[1643447069023,0.25,95.659,95.541,43.32348737]
[1643447069219,33.54868117,95.658,95.541,43.32348737]
[1643447069619,6.0,95.648,95.541,43.32348737]
[1643447069819,0.25,95.647,95.541,43.32348737]
[1643447070321,112.8,95.643,95.541,43.32348737]
[1643447070520,6.0,95.633,95.541,43.32348737]
[1643447070919,0.25,95.632,95.541,43.32348737]
[1643447071120,112.8,95.643,95.541,43.32348737]
[1643447071324,34.23480722,95.642,95.541,43.32348737]
[1643447072423,15.31798674,95.641,95.541,43.32348737]
[1643447072622,15.06798674,95.641,95.541,43.32348737]
[1643447072822,0.25,95.64,95.541,43.32348737]
[1643447073022,15.31798674,95.64,95.541,41.82348737]
[1643447074526,6.0,95.63,95.541,41.82348737]
[1643447074726,6.0,95.63,95.526,71.443]
[1643447074930,0.25,95.629,95.526,71.443]
[1643447075144,6.0,95.628,95.526,71.443]
[1643447075324,0.25,95.627,95.48,490.95945519]
[1643447075526,6.0,95.619,95.48,490.95945519]
[1643447075724,12.59,95.61,95.482,42.9908]
[1643447075926,12.59,95.61,95.491,6.0]
[1643447076125,6.0,95.6,95.482,45.43836396]
[1643447076325,14.56053827,95.599,95.483,103.4]
[1643447076525,6.0,95.589,95.493,6.0]
[1643447076727,6.0,95.589,95.5,12.59]
[1643447076924,0.25,95.588,95.501,36.21585337]
[1643447077127,0.25,95.588,95.501,38.66341733]
[1643447077525,14.56272079,95.587,95.501,36.21585337]
[1643447077726,6.0,95.577,95.501,36.21585337]
[1643447078129,0.25,95.576,95.501,36.21585337]
[1643447079235,0.25,95.609,95.501,36.21585337]
[1643447079430,14.66695031,95.609,95.502,103.4]
[1643447079630,6.0,95.599,95.501,36.21585337]
[1643447079831,0.25,95.598,95.501,36.21585337]
[1643447080031,20.66695031,95.598,95.503,2.45373448]
[1643447080234,14.41695031,95.597,95.503,2.45373448]
[1643447080435,14.41695031,95.597,95.501,36.21585337]
[1643447080636,6.0,95.587,95.501,36.21585337]
[1643447080838,6.0,95.587,95.502,2.70373448]
[1643447081040,6.0,95.62,95.502,106.10373448]
[1643447081239,14.73880571,95.619,95.511,2.8518295]
[1643447081439,14.73880571,95.619,95.51,2.8518295]
[1643447081639,6.0,95.609,95.51,2.8518295]
[1643447081842,6.0,95.609,95.514,2.8518295]
[1643447082140,20.73880571,95.608,95.503,2.8518295]
[1643447082342,14.9128267,95.607,95.503,2.8518295]
[1643447082542,6.0,95.597,95.502,106.2518295]
[1643447082749,6.0,95.597,95.502,103.4]
[1643447082949,6.0,95.597,95.501,39.06768287]
[1643447083148,0.25,95.596,95.501,39.06768287]
[1643447083349,0.25,95.596,95.501,36.21585337]
[1643447083549,14.9128267,95.595,95.501,36.21585337]
[1643447083750,0.25,95.594,95.501,36.21585337]
[1643447083949,6.0,95.585,95.501,36.21585337]
[1643447084452,21.29504967,95.584,95.501,36.21585337]
[1643447084648,21.04504967,95.583,95.501,36.21585337]
[1643447084850,15.29504967,95.582,95.501,36.21585337]
[1643447085051,6.0,95.585,95.501,36.21585337]
[1643447085451,6.0,95.59,95.501,36.21585337]
[1643447085653,15.04504967,95.589,95.501,36.21585337]
[1643447086052,6.0,95.579,95.501,36.21585337]
[1643447086252,0.25,95.578,95.501,36.21585337]
[1643447086852,14.43063495,95.577,95.501,36.21585337]
[1643447087057,0.25,95.589,95.501,36.21585337]
[1643447087355,0.25,95.576,95.501,36.21585337]
[1643447088257,6.0,95.59,95.501,36.21585337]
[1643447088453,14.46202232,95.589,95.501,36.21585337]
[1643447088654,14.71202232,95.589,95.501,36.21585337]
[1643447088862,6.0,95.579,95.501,36.21585337]
[1643447089267,0.25,95.578,95.501,36.21585337]
[1643447090273,14.46202232,95.577,95.501,36.21585337]
[1643447090574,14.46202232,95.577,95.463,2.45373448]
[1643447090575,6.0,95.567,95.481,2.8518295]
[1643447090775,0.25,95.566,95.473,2.8518295]
[1643447090974,0.25,95.566,95.471,2.8518295]
[1643447090975,14.95310774,95.566,95.471,2.8518295]
[1643447091272,0.25,95.566,95.466,2.8518295]
[1643447091474,0.25,95.566,95.472,35.75615579]
[1643447091878,0.25,95.566,95.474,2.8518295]
[1643447092075,6.0,95.56,95.474,2.8518295]
[1643447092276,12.59,95.55,95.441,2.8518295]
[1643447092673,6.0,95.54,95.434,2.8518295]
[1643447092877,12.59,95.53,95.434,2.8518295]
[1643447093072,6.0,95.52,95.434,41.27875091]
[1643447093274,0.25,95.519,95.434,41.27875091]
[1643447094277,6.0,95.51,95.434,41.27875091]
[1643447094478,18.59,95.51,95.434,41.27875091]
[1643447094676,0.25,95.509,95.434,41.27875091]
[1643447095683,0.25,95.509,95.405,2.8518295]
[1643447095879,0.25,95.509,95.403,2.8518295]
[1643447096281,21.76822788,95.508,95.401,2.8518295]
[1643447096484,21.76822788,95.508,95.4,2.8518295]
[1643447096781,6.0,95.498,95.401,35.32057551]
[1643447097180,0.25,95.497,95.401,35.32057551]
[1643447097381,6.0,95.49,95.401,35.32057551]
[1643447097880,0.25,95.489,95.401,35.32057551]
[1643447098082,0.25,95.489,95.402,2.46713548]
[1643447098386,0.25,95.489,95.402,2.8518295]
[1643447098679,0.25,95.489,95.401,35.32057551]
[1643447098880,0.25,95.499,95.401,35.32057551]
[1643447103087,18.59,95.5,95.401,35.32057551]
[1643447104287,0.25,95.499,95.401,35.32057551]
[1643447104689,18.59,95.5,95.401,35.32057551]
[1643447105091,6.0,95.5,95.401,35.32057551]
[1643447105489,6.0,95.51,95.419,1.44369581]
[1643447105690,12.59,95.52,95.422,1.44369581]
[1643447105889,12.59,95.52,95.426,1.44369581]
[1643447106090,12.59,95.52,95.436,1.44369581]
[1643447106290,12.59,95.52,95.437,43.09078149]
[1643447106689,12.59,95.52,95.437,44.5344773]
[1643447107090,6.0,95.51,95.437,44.5344773]
[1643447107392,6.0,95.51,95.44,1.44369581]
[1643447107613,6.0,95.52,95.441,1.44369581]
[1643447107789,6.0,95.52,95.444,1.44369581]
[1643447108193,112.8,95.564,95.445,1.44369581]
[1643447108395,112.8,95.564,95.452,1.44369581]
[1643447108591,112.8,95.564,95.443,2.48381249]
[1643447108592,112.8,95.564,95.462,1.44369581]
[1643447108792,112.8,95.564,95.46,1.44369581]
[1643447108995,112.8,95.564,95.463,1.44369581]
[1643447109195,112.8,95.564,95.468,1.44369581]
[1643447109394,112.8,95.564,95.471,1.44369581]
[1643447109598,4.40779564,95.643,95.49,1.44369581]
[1643447109599,112.8,95.606,95.49,1.44369581]
[1643447109895,112.8,95.606,95.501,40.64024168]
[1643447110099,12.59,95.64,95.511,6.0]
[1643447110296,41.9508627,95.605,95.491,0.0084374]
[1643447110496,41.9508627,95.605,95.444,0.30887217]
[1643447110497,2.95669142,95.494,95.4,2.88815684]
[1643447110697,12.59,95.48,95.351,2.88815684]
[1643447110899,12.59,95.47,95.351,2.88815684]
[1643447111099,157.36,95.45,95.346,2.88815684]
[1643447111299,157.36,95.45,95.35,2.88815684]
[1643447111300,12.59,95.44,95.35,2.88815684]
[1643447111502,169.95,95.44,95.347,34.32374916]
[1643447111700,19.41443725,95.46,95.349,173.4]
[1643447111897,6.0,95.484,95.349,173.4]
[1643447112105,169.95,95.45,95.349,173.4]
[1643447112297,169.95,95.45,95.359,6.0]
[1643447112497,169.95,95.45,95.362,6.0]
[1643447112700,169.95,95.45,95.363,103.4]
[1643447113003,169.95,95.45,95.364,36.1774847]
[1643447113198,0.25,95.449,95.365,103.4]
[1643447113599,169.95,95.45,95.365,117.3823118]
[1643447114000,169.95,95.45,95.365,13.9823118]
[1643447114998,0.25,95.449,95.365,13.9823118]
[1643447115618,79.29003741,95.45,95.366,70.0]
[1643447115819,10.08502358,95.45,95.368,70.0]
[1643447116028,6.0,95.484,95.379,103.4]
[1643447116223,12.59,95.47,95.379,103.4]
[1643447116627,3.42861587,95.48,95.381,70.0]
[1643447116821,6.70308815,95.48,95.382,62.32]
[1643447117022,12.59,95.5,95.392,109.4]
[1643447117222,12.59,95.5,95.393,46.791]
[1643447117422,12.59,95.5,95.393,47.041]
[1643447117624,2.95669142,95.546,95.405,70.0]
[1643447117827,0.30175574,95.622,95.405,70.0]
[1643447117828,47.9177,95.624,95.414,0.31228146]
[1643447118023,76.4803,95.646,95.414,0.31228146]
[1643447118024,3.0,95.628,95.429,2.88815684]
[1643447118228,3.0,95.628,95.435,2.88815684]
[1643447118425,15.702,95.62,95.451,0.31953174]
[1643447118626,40.91129596,95.619,95.46,6.0]
[1643447118827,40.91129596,95.619,95.461,0.25]
[1643447119029,40.91129596,95.619,95.462,6.0]
[1643447119229,40.91129596,95.619,95.463,103.4]
[1643447119428,40.91129596,95.619,95.463,126.4588]
[1643447119629,40.91129596,95.619,95.474,103.4]
[1643447119830,6.0,95.609,95.473,6.0]
[1643447120029,15.706,95.6,95.475,13.9823118]
[1643447120229,34.9152217,95.599,95.475,13.9823118]
[1643447120434,17.50807331,95.639,95.485,6.0]
[1643447120629,17.50807331,95.639,95.486,99.7547]
[1643447121029,15.702,95.62,95.486,99.7547]
[1643447121231,12.59,95.61,95.486,99.7547]
[1643447121428,12.59,95.61,95.486,22.5922]
[1643447121630,40.07988758,95.599,95.486,22.5922]
[1643447121828,12.59,95.59,95.463,23.0588]
[1643447122030,6.0,95.58,95.453,103.4]
[1643447122229,39.49003888,95.579,95.453,103.4]
[1643447122430,39.74003888,95.579,95.453,103.4]
[1643447122636,6.0,95.569,95.453,103.4]
[1643447122829,0.25,95.568,95.453,103.4]
[1643447123031,0.25,95.568,95.463,6.0]
[1643447123233,0.25,95.568,95.471,103.4]
[1643447123431,64.944,95.62,95.481,6.0]
[1643447123729,12.59,95.63,95.481,6.0]
[1643447123929,17.50807331,95.644,95.481,6.0]
[1643447123930,12.59,95.64,95.484,3.0]
[1643447124131,46.0497466,95.629,95.494,6.0]
[1643447124330,46.0497466,95.629,95.495,0.25]
[1643447124629,46.0497466,95.629,95.5,6.0]
[1643447124829,46.0497466,95.629,95.501,103.65]
[1643447125029,46.0497466,95.629,95.501,116.70136736]
[1643447125233,6.0,95.619,95.501,116.70136736]
[1643447125533,6.0,95.619,95.502,13.05136736]
[1643447125732,46.0497466,95.629,95.503,103.4]
[1643447125932,15.7,95.63,95.503,103.65]
[1643447126134,6.0,95.62,95.513,6.0]
[1643447126336,6.0,95.62,95.514,103.65]
[1643447126536,6.0,95.64,95.524,6.0]
[1643447126933,6.0,95.64,95.525,103.65]
[1643447127135,6.0,95.65,95.53,6.0]
[1643447127334,6.0,95.65,95.536,103.4]
[1643447127735,0.25,95.649,95.536,103.4]
[1643447127934,37.87641733,95.649,95.536,103.4]
[1643447128334,37.62641733,95.649,95.537,0.25]
[1643447128739,37.62641733,95.649,95.536,103.4]
[1643447128935,37.62641733,95.649,95.547,103.4]
[1643447129135,37.62641733,95.649,95.51,25.64136736]
[1643447129338,6.0,95.639,95.511,0.25]
[1643447129535,6.0,95.639,95.511,13.30136736]
[1643447129736,0.25,95.638,95.511,13.30136736]
[1643447129936,0.25,95.638,95.512,13.05136736]
[1643447130344,0.25,95.638,95.513,0.25]
[1643447130747,0.25,95.638,95.514,13.05136736]
[1643447131142,0.25,95.638,95.515,0.25]
[1643447131342,0.25,95.639,95.515,0.25]
[1643447131543,0.25,95.639,95.516,13.05136736]
[1643447131842,0.25,95.639,95.517,0.25]
[1643447132243,0.25,95.639,95.524,103.4]
[1643447132741,0.25,95.639,95.51,12.59]
[1643447132942,15.702,95.63,95.49,12.59]
[1643447133142,12.59,95.62,95.48,12.59]
[1643447133345,0.25,95.619,95.46,12.59]
[1643447133542,35.78338368,95.609,95.45,15.06680628]
[1643447133743,12.59,95.6,95.45,15.06680628]
[1643447133941,6.0,95.599,95.463,11.8912618]
[1643447134145,6.0,95.59,95.475,2.47602708]
[1643447134342,0.25,95.589,95.485,6.0]
[1643447134543,0.25,95.589,95.492,6.0]
[1643447134942,0.25,95.589,95.493,0.25]
[1643447135544,38.13511786,95.609,95.493,2.72602708]
[1643447136244,38.13511786,95.609,95.493,2.47602708]
[1643447136444,38.13511786,95.609,95.503,6.0]
[1643447136645,38.13511786,95.609,95.504,103.4]
[1643447136845,38.13511786,95.609,95.503,6.0]
[1643447137244,0.25,95.609,95.503,6.0]
[1643447137445,0.25,95.609,95.504,103.4]
[1643447137845,0.25,95.609,95.505,0.25]
[1643447138247,0.25,95.609,95.515,103.4]
[1643447138749,6.0,95.62,95.516,2.72602708]
[1643447138946,6.0,95.62,95.516,0.25]
[1643447139746,6.0,95.62,95.525,6.0]
[1643447139947,6.0,95.62,95.516,0.25]
[1643447140350,0.25,95.619,95.516,0.25]
[1643447141574,0.25,95.619,95.525,6.0]
[1643447141773,0.25,95.619,95.526,0.25]
[1643447141980,0.25,95.619,95.525,6.0]
[1643447142175,0.25,95.619,95.526,0.25]
[1643447142375,0.25,95.619,95.525,6.0]
[1643447142576,6.0,95.623,95.525,6.0]
[1643447143777,40.33215752,95.633,95.525,6.0]
[1643447144177,0.25,95.632,95.525,6.0]
[1643447144377,0.25,95.632,95.515,103.4]
[1643447144578,12.59,95.63,95.515,103.4]
[1643447144779,0.25,95.629,95.515,103.4]
[1643447146080,0.25,95.629,95.515,165.47]
[1643447146279,0.25,95.629,95.515,177.3612618]
[1643447146481,0.25,95.629,95.525,6.0]
[1643447146679,0.25,95.632,95.525,6.0]
[1643447146881,0.25,95.639,95.526,0.25]
[1643447147079,0.25,95.639,95.526,103.4]
[1643447147279,0.25,95.639,95.527,2.47602708]
[1643447147681,6.0,95.64,95.526,103.4]
[1643447147884,0.25,95.639,95.526,103.4]
[1643447148082,6.0,95.634,95.521,24.4394]
[1643447148283,6.0,95.634,95.516,24.4209]
[1643447148284,12.59,95.63,95.516,24.4209]
[1643447148483,6.0,95.62,95.516,24.4209]
[1643447148686,60.89136022,95.6,95.516,24.4209]
[1643447148883,15.705,95.6,95.516,24.4209]
[1643447149090,0.25,95.599,95.517,103.4]
[1643447150087,0.25,95.599,95.516,24.4209]
[1643447150289,6.25,95.619,95.516,24.4209]
[1643447150487,51.56009664,95.61,95.516,24.4209]
[1643447150688,6.0,95.609,95.516,24.4209]
[1643447150898,0.25,95.609,95.517,2.47602708]
[1643447151088,0.25,95.609,95.516,24.4209]
[1643447151290,6.0,95.61,95.516,24.4209]
[1643447151590,6.0,95.6,95.517,2.47602708]
[1643447151788,35.55683399,95.619,95.516,24.4209]
[1643447151989,35.55683399,95.619,95.517,103.4]
[1643447152189,35.55683399,95.619,95.517,105.87602708]
[1643447152389,6.0,95.609,95.517,103.4]
[1643447152689,0.25,95.618,95.518,2.47602708]
[1643447152888,15.702,95.62,95.518,2.47602708]
[1643447153091,15.702,95.62,95.519,2.90920039]
[1643447153490,15.702,95.62,95.52,2.47602708]
[1643447153890,0.25,95.619,95.52,2.47602708]
[1643447154491,6.0,95.63,95.52,2.47602708]
[1643447154897,0.25,95.629,95.52,2.47602708]
[1643447159495,0.25,95.629,95.519,103.4]
[1643447159696,15.704,95.61,95.52,2.48978105]
[1643447159896,0.25,95.609,95.52,2.48978105]
[1643447160299,6.0,95.63,95.521,0.25]
[1643447160497,6.0,95.63,95.521,3.15939168]
[1643447160697,6.0,95.63,95.522,5.39917273]
[1643447160897,6.0,95.63,95.523,103.4]
[1643447161098,35.4451462,95.629,95.523,103.4]
[1643447161499,6.0,95.619,95.523,103.4]
[1643447161802,0.25,95.618,95.523,103.4]
[1643447162000,12.59,95.63,95.524,2.48978105]
[1643447162302,12.59,95.63,95.525,0.25]
[1643447162703,12.59,95.63,95.526,2.48978105]
[1643447162903,35.72133491,95.643,95.534,103.4]
[1643447163102,15.702,95.62,95.537,103.4]
[1643447163705,15.702,95.62,95.538,2.48978105]
[1643447163905,0.25,95.619,95.515,2.88815684]
[1643447164102,15.706,95.6,95.509,2.91015136]
[1643447164304,0.25,95.599,95.509,2.91015136]
[1643447164707,0.25,95.599,95.49,2.88815684]
[1643447164906,0.25,95.599,95.484,2.88815684]
[1643447165106,6.0,95.593,95.491,2.91015136]
[1643447165305,12.59,95.58,95.478,2.91015136]
[1643447165507,12.59,95.58,95.476,103.4]
[1643447165508,0.25,95.592,95.492,2.48978105]
[1643447165709,15.71,95.57,95.492,2.48978105]
[1643447165910,0.25,95.592,95.477,2.48978105]
[1643447166109,0.25,95.569,95.478,2.90875313]
[1643447166311,0.25,95.592,95.478,2.90875313]
[1643447166513,49.4552,95.609,95.488,6.0]
[1643447166714,15.08,95.61,95.489,67.86690997]
[1643447166915,15.7,95.63,95.492,2.88815684]
[1643447167114,15.7,95.63,95.503,62.07]
[1643447167314,15.7,95.63,95.504,2.90875313]
[1643447167513,33.03589673,95.629,95.503,62.07]
[1643447167742,33.03589673,95.629,95.504,2.48978105]
[1643447167942,33.03589673,95.629,95.505,2.9083616]
[1643447168241,33.03589673,95.629,95.496,2.88815684]
[1643447168242,15.703,95.62,95.503,103.4]
[1643447168439,15.08,95.61,95.503,103.4]
[1643447168641,37.900201,95.609,95.503,103.4]
[1643447168841,38.150201,95.609,95.504,2.48978105]
[1643447169242,38.150201,95.609,95.494,103.4]
[1643447169642,38.150201,95.609,95.495,2.9085527]
[1643447170147,38.150201,95.609,95.493,47.4009]
[1643447170342,38.150201,95.609,95.494,103.4]
[1643447171146,38.150201,95.609,95.495,2.48978105]
[1643447172147,38.150201,95.609,95.496,0.25]
[1643447172345,37.900201,95.609,95.496,0.25]
[1643447172544,15.706,95.6,95.495,2.48978105]
[1643447172748,30.786,95.6,95.497,2.48978105]
[1643447172945,6.0,95.619,95.505,103.4]
[1643447173146,24.4701,95.629,95.515,6.0]
[1643447173347,24.4701,95.629,95.516,103.65]
[1643447173556,24.4701,95.629,95.526,6.0]
[1643447173747,38.22103808,95.628,95.527,103.65]
[1643447174149,38.22103808,95.628,95.527,103.4]
[1643447175048,6.0,95.618,95.527,103.4]
[1643447175250,38.22103808,95.628,95.508,24.8947]
[1643447175453,14.73,95.618,95.494,2.49665087]
[1643447175651,14.73,95.618,95.495,2.90864646]
[1643447175850,0.25,95.617,95.494,5.40529733]
[1643447176051,0.25,95.617,95.495,103.4]
[1643447176256,0.25,95.617,95.496,2.49665087]
[1643447176452,0.25,95.617,95.496,25.84605087]
[1643447176652,0.25,95.617,95.506,6.0]
[1643447176953,0.25,95.619,95.507,2.90864646]
[1643447177157,0.25,95.619,95.507,5.40529733]
[1643447177354,0.25,95.619,95.508,5.40529733]
[1643447177553,0.25,95.619,95.509,103.4]
[1643447178156,15.705,95.61,95.51,2.9090889]
[1643447178359,33.14179896,95.609,95.509,103.4]
[1643447182962,33.14179896,95.609,95.496,23.3494]
[1643447183159,33.14179896,95.609,95.494,103.4]
[1643447183160,6.0,95.599,95.494,103.4]
[1643447183360,0.25,95.598,95.494,103.4]
[1643447183560,33.27999145,95.589,95.494,103.4]
[1643447183761,0.25,95.588,95.494,103.4]
[1643447184562,16.34529554,95.608,95.495,62.07]
[1643447184762,93.51426613,95.871,95.51,2.88815684]
[1643447184763,52.338,95.65,95.51,2.88815684]
[1643447184966,52.338,95.65,95.52,12.57]
[1643447185164,52.338,95.65,95.521,103.4]
[1643447185364,23.5525,95.658,95.521,112.55663023]
[1643447185564,46.59911345,95.657,95.531,6.0]
[1643447185765,46.59911345,95.657,95.54,12.57]
[1643447186788,0.25,95.656,95.541,103.4]
[1643447186993,15.699,95.64,95.541,103.4]
[1643447187289,43.07589364,95.639,95.541,103.4]
[1643447187892,42.82589364,95.639,95.541,103.4]
[1643447188591,42.82589364,95.639,95.542,2.50284397]
[1643447188892,15.699,95.64,95.542,2.50284397]
[1643447189097,23.5525,95.658,95.542,2.50284397]
[1643447189297,0.25,95.657,95.542,2.50284397]
[1643447189893,44.13875376,95.657,95.542,2.50284397]
[1643447190098,44.13875376,95.657,95.541,103.4]
[1643447190393,15.698,95.65,95.541,103.4]
[1643447190591,15.698,95.65,95.542,2.50284397]
[1643447190792,0.25,95.649,95.542,2.50284397]
[1643447190990,0.25,95.649,95.541,103.4]
[1643447191191,0.25,95.649,95.542,2.50284397]
[1643447192393,15.698,95.65,95.553,103.4]
[1643447192592,23.5525,95.658,95.564,103.4]
[1643447192794,15.694,95.67,95.565,0.25]
[1643447192993,6.0,95.655,95.574,6.0]
[1643447193193,6.0,95.655,95.575,103.4]
[1643447194094,15.69,95.69,95.576,2.50284397]
[1643447194294,15.69,95.69,95.59,12.57]
[1643447194494,6.0,95.68,95.6,6.0]
[1643447194694,6.0,95.68,95.601,103.4]
[1643447194994,22.7504,95.707,95.601,103.4]
[1643447194995,44.52571103,95.679,95.601,105.90284397]
[1643447195194,44.52571103,95.679,95.612,103.4]
[1643447195398,23.5988,95.719,95.612,103.4]
[1643447195595,23.5988,95.719,95.613,2.51791592]
[1643447195794,0.25,95.718,95.613,2.51791592]
[1643447196195,0.25,95.718,95.612,103.4]
[1643447196494,42.60709919,95.718,95.612,103.4]
[1643447196694,42.60709919,95.718,95.61,12.57]
[1643447196695,15.687,95.71,95.61,12.57]
[1643447196895,6.0,95.7,95.61,12.57]
[1643447197096,40.53219114,95.699,95.607,103.4]
[1643447197297,40.78219114,95.699,95.607,103.4]
[1643447197497,40.53219114,95.699,95.607,103.4]
[1643447198299,40.53219114,95.699,95.59,12.57]
[1643447198598,40.53219114,95.699,95.545,46.9519]
[1643447198599,6.0,95.689,95.545,46.9519]
[1643447198797,12.57,95.68,95.545,46.9519]